fUST/lending_fUST_20241015
["ID","MTS","AMOUNT","RATE_DAILY","PERIOD"]
[340254802,1728921727268,1960.02028458,0.00024,2]
[340254804,1728921793553,1500.0,0.00027,60]
[340254949,1728922238668,-169.54,0.00029,2]
[340254950,1728922238678,-150.0,0.00040242,14]
[340254951,1728922238687,-150.0,0.00040242,14]
[340254952,1728922238697,-200.0,0.00040242,14]
[340254953,1728922238706,-150.0,0.00040737,120]
[340254954,1728922238716,-485.69638648,0.0004099,2]
[340254955,1728922238725,-485.69638646,0.0004106,2]
[340254956,1728922238734,-1000.0,0.00041074,120]
[340254957,1728922238744,-197.353,0.00041075,60]
[340254958,1728922238754,-454.7,0.00041075,3]
[340254959,1728922238764,-440.20168014,0.00041085,6]
[340255038,1728922246797,-2587.37,0.00041075,10]
[340255039,1728922246807,-24712.68509412,0.00041085,6]
[340255075,1728923296432,10000.0,0.00021,5]
[340255076,1728923317998,60000.0,0.00022,30]
[340255077,1728923318023,23221.6540437,0.00022,30]
[340255078,1728923318378,44307.50930894,0.00021,60]
[340255109,1728923432491,-13154.78118329,0.000273,2]
[340255111,1728923432502,-152.59,0.00029,2]
[340255113,1728923432513,-2621.89188206,0.0003,30]
[340255115,1728923432523,-500.38185113,0.00032,30]
[340255117,1728923432533,-191.0,0.00040242,4]
[340255118,1728923432543,-176.02,0.00040268,14]
[340255119,1728923432552,-174.22761338,0.00040683,31]
[340255120,1728923432564,-254.45873456,0.00040683,31]
[340255121,1728923432574,-5854.59357525,0.00040684,32]
[340255122,1728923432587,-52827.39999999,0.00040684,2]
[340255123,1728923432597,-960.33275165,0.00040684,30]
[340255124,1728923432607,-1071.86388638,0.0004078,28]
[340255125,1728923432617,-1453.23754076,0.0004088,11]
[340255126,1728923432627,-2793.11,0.0004098,10]
[340255127,1728923432636,-4435.87,0.0004098,10]
[340255128,1728923432647,-682.09,0.0004098,3]
[340255129,1728923432656,-291.4178319,0.00040985,2]
[340255130,1728923432666,-291.41783187,0.00040988,2]
[340255131,1728923432675,-291.41783187,0.0004099,2]
[340255132,1728923432685,-281.31200199,0.0004099,2]
[340255133,1728923432694,-14176.64314,0.0004099,6]
[340255171,1728923446608,-2492.61491234,0.00040684,2]
[340255550,1728924642725,-2700.0,0.000257,2]
[340255552,1728924642735,-158.26,0.00029,2]
[340255554,1728924642745,-500.0,0.0002905,2]
[340255555,1728924642755,-500.0,0.0002905,2]
[340255557,1728924642764,-159.4,0.000304,31]
[340255559,1728924642773,-400.0,0.00031999,2]
[340255561,1728924642782,-400.0,0.00031999,2]
[340255563,1728924642791,-500.0,0.00032,30]
[340255565,1728924642800,-500.0,0.00032,30]
[340255566,1728924642809,-500.0,0.00032,30]
[340255568,1728924642818,-500.0,0.00032,30]
[340255570,1728924642828,-10457.85825975,0.00032272,2]
[340255572,1728924642838,-170.944197,0.00032628,2]
[340255574,1728924642848,-159.0,0.0003267,2]
[340255576,1728924642858,-170.944197,0.00032791,2]
[340255577,1728924642867,-208.38283135,0.00032877,2]
[340255579,1728924642877,-170.572108,0.00033778,2]
[340255581,1728924642887,-560.0,0.00034417,2]
[340255583,1728924642896,-159.4,0.000345,31]
[340255585,1728924642906,-159.4,0.000345,31]
[340255587,1728924642915,-1111.0,0.00034849,120]
[340255589,1728924642924,-560.0,0.00035199,2]
[340255590,1728924642933,-157.6675147,0.00036822,2]
[340255592,1728924642942,-783.0,0.00037017,2]
[340255595,1728924642951,-158.551409,0.00038356,2]
[340255597,1728924642961,-159.4,0.000386,31]
[340255600,1728924642970,-159.4,0.000386,31]
[340255602,1728924642979,-783.0,0.00038719,30]
[340255604,1728924642990,-300.55,0.00039006,2]
[340255605,1728924643000,-157.883,0.00039767,55]
[340255607,1728924643009,-1097.0,0.00039814,5]
[340255609,1728924643019,-3021.69,0.0003999,10]
[340255611,1728924643029,-216.67067568,0.0004,120]
[340255613,1728924643038,-158.14882576,0.0004,2]
[340255615,1728924643049,-243049.289,0.0004,120]
[340255617,1728924643058,-551.67995657,0.00040073,5]
[340255619,1728924643069,-500.0,0.00040073,2]
[340255621,1728924643080,-172.12727014,0.00040073,5]
[340255623,1728924643090,-694.72958534,0.0004009,30]
[340255625,1728924643099,-3711.14,0.0004009,10]
[340255627,1728924643109,-3626.03,0.0004009,10]
[340255629,1728924643119,-9701.14141118,0.000401,33]
[340255631,1728924643129,-8611.01931858,0.000401,32]
[340255633,1728924643140,-150.0,0.00040264,14]
[340255635,1728924643151,-150.0,0.00040264,14]
[340255637,1728924643162,-200.0,0.00040264,14]
[340255639,1728924643172,-2466.6,0.00040264,70]
[340255641,1728924643182,-401.96578582,0.00040264,7]
[340255643,1728924643191,-1362.27408955,0.00040481,16]
[340255644,1728924643201,-500.29325796,0.00040573,5]
[340255646,1728924643210,-500.0,0.00040573,5]
[340255648,1728924643219,-500.0,0.00040573,5]
[340255650,1728924643229,-500.30125347,0.00040573,5]
[340255652,1728924643238,-84136.19892451,0.0004059,2]
[340255653,1728924643247,-170335.75499147,0.0004059,2]
[340256405,1728925838046,-150.0,0.000257,2]
[340256407,1728925838058,-227.02,0.00029,2]
[340256408,1728925838068,-156.27,0.000304,31]
[340256409,1728925838080,-156.27,0.000304,31]
[340256410,1728925838092,-31.49696992,0.00032877,2]
[340256411,1728925838104,-196.74063646,0.00032877,2]
[340256412,1728925838113,-156.27,0.000345,31]
[340256413,1728925838128,-156.27,0.000345,31]
[340256414,1728925838137,-156.27,0.000345,31]
[340256415,1728925838147,-156.27,0.000345,31]
[340256416,1728925838157,-1111.0,0.00034849,120]
[340256417,1728925838166,-6.82003919,0.00034995,2]
[340256418,1728925838197,-393.17996081,0.00034995,2]
[340256419,1728925838206,-400.0,0.00034999,2]
[340256420,1728925838216,-11072.8569494,0.00035,3]
[340256421,1728925838225,-168.00915671,0.00036822,2]
[340256422,1728925838235,-1511.8,0.00038,61]
[340256423,1728925838245,-434.0,0.00038495,30]
[340256424,1728925838254,-156.27,0.000386,31]
[340256425,1728925838263,-156.27,0.000386,31]
[340256426,1728925838272,-156.27,0.000386,31]
[340256427,1728925838281,-156.27,0.000386,31]
[340256428,1728925838291,-185.62690355,0.00038795,7]
[340256429,1728925838300,-152.137,0.00039006,2]
[340256430,1728925838309,-526.0,0.00039006,2]
[340256431,1728925838318,-1157.0,0.00039006,2]
[340256432,1728925838327,-1806.0,0.00039006,2]
[340256433,1728925838337,-286.625,0.0003925,120]
[340256434,1728925838346,-286.625,0.0003925,120]
[340256435,1728925838355,-286.625,0.0003925,120]
[340256436,1728925838365,-286.625,0.0003925,120]
[340256437,1728925838374,-286.625,0.0003925,120]
[340256438,1728925838383,-150.0,0.00039294,120]
[340256439,1728925838393,-150.0,0.00039294,120]
[340256440,1728925838402,-500.0,0.000393,5]
[340256441,1728925838411,-500.0,0.0004,120]
[340256442,1728925838420,-150.0,0.0004,120]
[340256443,1728925838429,-151.0,0.00040284,14]
[340256444,1728925838439,-160.915,0.00040387,57]
[340256445,1728925838449,-1453.23754076,0.00040387,11]
[340256446,1728925838459,-1591.99280776,0.0004049,28]
[340256447,1728925838471,-771.345,0.000405,120]
[340256448,1728925838481,-386.04267229,0.00040574,2]
[340256449,1728925838490,-4105.7806862,0.0004059,2]
[340256450,1728925838504,-57195.41072619,0.0004059,2]
[340256451,1728925838513,-463.15305689,0.0004059,30]
[340256452,1728925838522,-386.04267229,0.00040621,2]
[340256453,1728925838532,-1340.09,0.00040654,10]
[340256454,1728925838543,-57138.45536669,0.00040661,60]
[340256455,1728925838553,-150.0,0.00040664,120]
[340256456,1728925838563,-212.86475524,0.00040664,120]
[340256457,1728925838574,-23178.7243636,0.00040664,6]
[340256458,1728925838585,-4640.7146164,0.00040664,6]
[340256459,1728925838594,-386.04267229,0.00040668,2]
[340256460,1728925838603,-6518.4471601,0.00040684,2]
[340256470,1728925839962,-1658.77657503,0.00040684,2]
[340256493,1728925842944,-11186.51232755,0.00040684,2]
[340256494,1728925843000,-1760.69318955,0.00040684,2]
[340256499,1728925845885,-1313.2,0.00040684,2]
[340256500,1728925845899,-1334.55583544,0.00040684,2]
[340256501,1728925845908,-386.04267229,0.00040714,2]
[340256502,1728925845917,-323.56061344,0.00040751,6]
[340256503,1728925845929,-4261.6958004,0.00040751,6]
[340256504,1728925845940,-683.93107189,0.00040751,6]
[340256505,1728925845952,-355.66427784,0.00040751,6]
[340256506,1728925845963,-569.0,0.00040751,6]
[340256507,1728926477546,215.85310535,0.00027,60]
[340256521,1728926899518,7368.80574692,0.000125,2]
[340256522,1728926904388,174.66905956,0.000212,2]
[340256523,1728926908696,1061.70963744,0.000176,2]
[340256524,1728926910473,1409.38521636,0.000134,2]
[340256525,1728926922450,8441.05650043,0.00018,10]
[340256526,1728926922481,12392.46791489,0.00018,10]
[340256569,1728927038069,-300.0,0.00024999,2]
[340256570,1728927038079,-300.0,0.00024999,2]
[340256571,1728927038089,-394.94296225,0.00025,2]
[340256572,1728927038099,-164.79789829,0.00025,2]
[340256573,1728927038108,-507.76244279,0.00025,2]
[340256574,1728927038118,-202.57329572,0.00025,2]
[340256575,1728927038127,-345.22392771,0.00025,2]
[340256576,1728927038141,-824.28490238,0.00025,2]
[340256577,1728927038152,-84.37389521,0.00027082,2]
[340256578,1728927038241,-328.62610479,0.00027082,2]
[340256579,1728927038251,-3761.59961704,0.000273,2]
[340256580,1728927038262,-1623.12055674,0.0002799,2]
[340256581,1728927038271,-204.32,0.00029,2]
[340256582,1728927038282,-156.22,0.000304,31]
[340256583,1728927038292,-150.0,0.00032,10]
[340256584,1728927038303,-172.7386062,0.00032877,2]
[340256585,1728927038313,-150.0,0.00033,11]
[340256586,1728927038322,-17056.34249357,0.00033,15]
[340256587,1728927038333,-150.0,0.00034,11]
[340256588,1728927038344,-156.22,0.000345,31]
[340256589,1728927038354,-156.22,0.000345,31]
[340256590,1728927038363,-441.45265143,0.00034849,120]
[340256591,1728927038372,-150.0,0.00035,12]
[340256592,1728927038382,-496.83246807,0.00035,7]
[340256593,1728927038397,-150.0,0.00036,12]
[340256594,1728927038406,-150.0,0.00037,13]
[340256595,1728927038415,-377.02660558,0.00037,14]
[340256596,1728927038425,-500.0,0.00037,10]
[340256597,1728927038435,-199.95656206,0.00037,10]
[340256598,1728927038444,-500.0,0.00037,10]
[340256599,1728927038453,-500.0,0.00037,10]
[340256600,1728927038462,-500.0,0.00037,10]
[340256601,1728927038471,-500.0,0.00037,10]
[340256602,1728927038481,-500.0,0.00037,10]
[340256603,1728927038490,-150.0,0.00038,14]
[340256604,1728927038499,-156.22,0.000386,31]
[340256605,1728927038508,-156.22,0.000386,31]
[340256606,1728927038517,-150.0,0.00039,14]
[340256607,1728927038527,-239.1737255,0.00039048,120]
[340256608,1728927038536,-5000.0,0.0004,40]
[340256609,1728927038546,-159.0,0.0004,2]
[340256610,1728927038555,-150.0,0.0004,15]
[340256611,1728927038565,-160.915,0.0004,56]
[340256612,1728927038574,-13000.0,0.0004,5]
[340256613,1728927038583,-1106.64,0.00040295,10]
[340256614,1728927038593,-2110.29,0.00040295,10]
[340256615,1728927038602,-1758.57,0.00040295,10]
[340256616,1728927038611,-1465.48,0.00040295,10]
[340256617,1728927038621,-191.0,0.00040305,4]
[340256618,1728927038630,-53362.54665467,0.00040305,2]
[340256619,1728927038639,-307.10721774,0.00040305,2]
[340256620,1728927038650,-11417.34591636,0.00040305,20]
[340256621,1728927038659,-1362.27408955,0.00040466,16]
[340256622,1728927038668,-500.0,0.00040673,2]
[340256623,1728927038677,-274.53981928,0.0004069,2]
[340256624,1728927038686,-526.0,0.00040693,2]
[340256625,1728927038695,-1806.0,0.00040693,2]
[340256626,1728927038704,-1157.0,0.00040693,2]
[340256627,1728927038714,-193.02133615,0.0004074,2]
[340256628,1728927038724,-193.02133614,0.00040741,2]
[340256629,1728927038734,-369.45200202,0.0004075,2]
[340256630,1728927038744,-151.0,0.00040761,14]
[340256631,1728927038754,-151.0,0.00040761,14]
[340256632,1728927038766,-151.0,0.00040761,7]
[340256633,1728927038777,-151.0,0.00040761,14]
[340256634,1728927038787,-151.0,0.00040761,14]
[340256635,1728927038797,-151.0,0.00040761,14]
[340256636,1728927038806,-153.149508,0.00040761,14]
[340256637,1728927038815,-151.0,0.00040761,14]
[340256638,1728927038825,-151.0,0.00040761,14]
[340256639,1728927038834,-151.0,0.0004077,14]
[340256640,1728927038843,-151.0,0.0004077,14]
[340256641,1728927038854,-151.0,0.0004077,7]
[340256642,1728927038865,-154.735256,0.0004077,14]
[340256643,1728927038876,-151.0,0.0004077,14]
[340256644,1728927038887,-151.0,0.0004077,14]
[340256645,1728927038898,-151.0,0.0004077,14]
[340256646,1728927038909,-151.475626,0.0004077,14]
[340256647,1728927038919,-151.0,0.0004077,14]
[340256648,1728927038929,-151.0,0.0004077,14]
[340256649,1728927038939,-183.525899,0.0004077,14]
[340256650,1728927038952,-151.0,0.0004077,14]
[340256651,1728927038965,-183.525899,0.0004077,14]
[340256652,1728927038975,-151.0,0.0004077,14]
[340256653,1728927038987,-150.112233,0.000408,8]
[340256654,1728927038996,-150.112233,0.000408,8]
[340256655,1728927039006,-10276.9313416,0.0004083,6]
[340256656,1728927039015,-2088.32157745,0.0004083,6]
[340256657,1728927039024,-10276.9313416,0.0004083,6]
[340256658,1728927039034,-2088.32157745,0.0004083,6]
[340256659,1728927039043,-20553.8626833,0.0004083,6]
[340256660,1728927039052,-4176.6431549,0.0004083,6]
[340256661,1728927039062,-24638.99404303,0.0004083,35]
[340256662,1728927039071,-12118.23087033,0.0004083,32]
[340256663,1728927039081,-30830.7940249,0.00040831,6]
[340256664,1728927039090,-6264.96473235,0.00040831,6]
[340256665,1728927039099,-10276.9313416,0.00040831,6]
[340256666,1728927039109,-2088.32157745,0.00040831,6]
[340256667,1728927039119,-470.656681,0.0004084,14]
[340256668,1728927039129,-470.656681,0.0004084,14]
[340256669,1728927039143,-480.622938,0.0004084,14]
[340256670,1728927039153,-1560.289637,0.0004084,14]
[340256671,1728927039163,-480.622938,0.0004084,14]
[340256672,1728927039173,-1560.289637,0.0004084,14]
[340256673,1728927039183,-151.0,0.0004084,14]
[340256674,1728927039192,-1228.810614,0.0004084,14]
[340256675,1728927039202,-2337.063184,0.0004084,14]
[340256676,1728927039213,-1228.810614,0.0004084,14]
[340256677,1728927039223,-2337.063184,0.0004084,14]
[340256678,1728927039232,-151.0,0.0004084,14]
[340256679,1728927039242,-151.0,0.0004084,14]
[340256680,1728927039251,-151.0,0.0004084,3]
[340256681,1728927039262,-696.82608,0.0004084,14]
[340256682,1728927039273,-151.0,0.0004084,14]
[340256683,1728927039284,-696.82608,0.0004084,14]
[340256684,1728927039304,-182.638024,0.0004084,14]
[340256685,1728927039315,-202.221054,0.0004084,14]
[340256686,1728927039325,-151.0,0.0004084,14]
[340256687,1728927039335,-202.221054,0.0004084,14]
[340256688,1728927039345,-151.0,0.0004084,14]
[340256689,1728927039355,-363.399913,0.0004084,14]
[340256690,1728927039364,-363.399913,0.0004084,14]
[340256691,1728927039374,-151.0,0.0004084,14]
[340256692,1728927039383,-268.206716,0.0004084,14]
[340256693,1728927039393,-362.858593,0.0004084,14]
[340256694,1728927039403,-151.0,0.0004084,14]
[340256695,1728927039414,-362.858593,0.0004084,14]
[340256696,1728927039423,-283.411073,0.0004084,14]
[340256697,1728927039433,-151.0,0.0004084,14]
[340256698,1728927039442,-283.411073,0.0004084,14]
[340256699,1728927039451,-1798.234152,0.0004084,14]
[340256700,1728927039461,-579.02611,0.0004084,14]
[340256701,1728927039472,-1798.234152,0.0004084,14]
[340256702,1728927039483,-579.02611,0.0004084,14]
[340256703,1728927039494,-73537.76904821,0.0004084,6]
[340256705,1728927039714,-656.83,0.0004084,6]
[340256741,1728927041202,-7055.44281323,0.0004084,6]
[340256760,1728927046065,-1221.23,0.0004076,10]
[340256761,1728927046075,-93.31,0.0004084,6]
[340256830,1728928232306,-433.90707799,0.0002905,2]
[340256832,1728928232318,-107.1120642,0.0002905,2]
[340256834,1728928232328,-183.89,0.000291,2]
[340256836,1728928232337,-469.9019358,0.00032,30]
[340256838,1728928232349,-30.0980642,0.00032,30]
[340256840,1728928232359,-400.0,0.00036837,2]
[340256841,1728928232368,-3138.5160957,0.00036838,2]
[340256845,1728928232482,-1759.09084815,0.00036838,2]
[340256846,1728928232496,-958.24513325,0.00036838,2]
[340256847,1728928232506,-247.62649994,0.00040311,16]
[340256861,1728928238360,-1114.64758961,0.00040311,16]
[340256862,1728928238370,-847.34685414,0.00040636,11]
[340256863,1728928238384,-1059.54651408,0.00040714,18]
[340256864,1728928238393,-1392.99370679,0.0004074,28]
[340256865,1728928238402,-342.60386912,0.00040742,120]
[340256866,1728928238412,-1467.79598261,0.00040749,2]
[340256867,1728928238422,-332.5068018,0.0004075,2]
[340256868,1728928238431,-160.915,0.000408,59]
[340256869,1728928238441,-150.112233,0.000408,8]
[340256870,1728928238450,-150.112233,0.000408,5]
[340256871,1728928238459,-150.112233,0.000408,9]
[340256872,1728928238468,-800.00000001,0.000408,30]
[340256873,1728928238478,-500.0,0.00040809,2]
[340256874,1728928238487,-1017.69,0.0004083,10]
[340256875,1728928238496,-848.08,0.0004083,10]
[340256876,1728928238506,-706.73,0.0004083,10]
[340256877,1728928238516,-997.390515,0.0004083,14]
[340256878,1728928238526,-997.390515,0.0004083,14]
[340256879,1728928238535,-292.878629,0.0004083,14]
[340256880,1728928238545,-151.0,0.0004083,14]
[340256881,1728928238554,-150.0,0.0004083,5]
[340256882,1728928238564,-150.0,0.0004083,5]
[340256883,1728928238573,-997.390515,0.00040831,14]
[340256884,1728928238583,-997.390515,0.00040831,14]
[340256885,1728928238592,-151.0,0.00040831,14]
[340256886,1728928238601,-3025.18109003,0.00040831,6]
[340256887,1728928238614,-5531.05838754,0.00040831,6]
[340256895,1728928240364,-7991.00359548,0.00040831,6]
[340256906,1728928243489,-609.51885624,0.00040831,6]
[340256907,1728928243501,-1790.67669301,0.00040831,6]
[340256908,1728928243514,-1246.72017249,0.00040831,6]
[340256909,1728928243583,-465.38434341,0.00040831,6]
[340256910,1728928243595,-643.54860029,0.00040831,6]
[340256923,1728928246357,-270.2525765,0.000403,5]
[340256924,1728928246369,-5528.2053437,0.000403,5]
[340256930,1728928746887,10000.0,0.00027,60]
[340256931,1728928761061,10000.0,0.00027,60]
[340257019,1728929446496,-165.5,0.000302,2]
[340257020,1728929446506,-500.0,0.00032,30]
[340257021,1728929446516,-160.915,0.00033049,34]
[340257023,1728929446529,-211.76143761,0.000384,5]
[340257024,1728929446539,-150.053309,0.00039,14]
[340257025,1728929446550,-2539.02588428,0.00039998,4]
[340257026,1728929446562,-5000.0,0.0004,40]
[340257027,1728929446572,-150.0,0.0004,15]
[340257028,1728929446582,-10000.0,0.0004,50]
[340257029,1728929446592,-2539.02588421,0.0004002,4]
[340257030,1728929446601,-2539.02588421,0.00040043,4]
[340257031,1728929446612,-2539.02588421,0.00040065,4]
[340257032,1728929446621,-2539.02588421,0.00040088,4]
[340257033,1728929446631,-631.47780461,0.0004011,30]
[340257034,1728929446641,-2539.02588421,0.0004011,4]
[340257035,1728929446651,-2539.02588421,0.00040133,4]
[340257036,1728929446660,-2539.02588421,0.00040155,4]
[340257037,1728929446669,-2539.02588421,0.00040178,4]
[340257038,1728929446680,-1218.86949345,0.0004018,28]
[340257039,1728929446689,-2539.02588421,0.000402,4]
[340257040,1728929446699,-588.94,0.0004027,10]
[340257041,1728929446708,-490.78,0.0004027,10]
[340257042,1728929446718,-408.99,0.0004027,10]
[340257043,1728929446728,-22353.0706973,0.0004028,43]
[340257044,1728929446738,-10951.89733084,0.0004028,43]
[340257045,1728929446748,-4501.49025201,0.0004028,6]
[340257046,1728929446757,-51055.4785797,0.0004028,6]
[340257047,1728929446768,-151.0,0.0004029,14]
[340257048,1728929446777,-151.0,0.0004029,14]
[340257049,1728929446788,-18005.961008,0.0004029,6]
[340257050,1728929446797,-76841.48825879,0.0004029,6]
[340257051,1728929446809,-42245.60021224,0.0004029,6]
[340257052,1728929446820,-3949.02,0.0004029,6]
[340257053,1728929446836,-15518.78798623,0.0004029,6]
[340257078,1728930520182,336.59664331,0.0001,7]
[340257079,1728930521748,214.0,0.000195,10]
[340257100,1728930607563,889.99918034,0.0002268,2]
[340257101,1728930608692,486.24995902,0.00023814,2]
[340257141,1728930646731,-466.06249795,0.00025005,2]
[340257142,1728930646744,-465.0531249,0.00026255,2]
[340257143,1728930646756,-302.72757545,0.00029,2]
[340257144,1728930646767,-302.72757545,0.0002929,2]
[340257145,1728930646777,-159.0,0.0002955,2]
[340257146,1728930646787,-302.72757545,0.0002958,2]
[340257147,1728930646797,-302.72757545,0.0002987,2]
[340257148,1728930646806,-302.72757545,0.0003016,2]
[340257149,1728930646815,-195.1158919,0.0003045,4]
[340257152,1728930751590,155.90573146,0.0002405,2]
[340257163,1728931026762,-302.72757545,0.00030298,2]
[340257164,1728931026786,-410.71732822,0.00030601,4]
[340257165,1728931026810,-150.0,0.000317,2]
[340257166,1728931026833,-158.0,0.0003267,2]
[340257167,1728931026855,-500.89596828,0.00035283,5]
[340257168,1728931026877,-167.58084613,0.00035513,5]
[340257169,1728931026899,-150.0,0.000358,12]
[340257170,1728931026922,-150.0,0.000368,13]
[340257171,1728931026953,-158.0,0.000375,7]
[340257172,1728931026981,-150.04692229,0.00037767,2]
[340257173,1728931027005,-150.0,0.000378,14]
[340257174,1728931027030,-153.0,0.00037849,120]
[340257175,1728931027053,-153.0,0.00037849,120]
[340257176,1728931027077,-153.0,0.00037849,120]
[340257177,1728931027100,-153.0,0.00037849,120]
[340257178,1728931027123,-153.0,0.00037857,120]
[340257179,1728931027146,-153.0,0.00037857,120]
[340257180,1728931027170,-153.0,0.00037858,120]
[340257181,1728931027193,-153.0,0.00037858,120]
[340257182,1728931027218,-153.0,0.00037867,120]
[340257183,1728931027241,-153.0,0.00037867,120]
[340257184,1728931027264,-153.0,0.00037867,120]
[340257185,1728931027288,-153.0,0.00037867,120]
[340257186,1728931027310,-626.9175,0.00038356,2]
[340257187,1728931027334,-150.0,0.000388,14]
[340257188,1728931027357,-9251.58271462,0.00039121,43]
[340257189,1728931027383,-29126.84826631,0.00039122,43]
[340257190,1728931027406,-420.98520308,0.00039222,14]
[340257191,1728931027428,-150.0,0.00039222,2]
[340257192,1728931027450,-526.0,0.00039222,2]
[340257193,1728931027473,-1157.0,0.00039222,2]
[340257194,1728931027495,-1806.0,0.00039222,2]
[340257195,1728931027653,-158.0,0.0003958,5]
[340257196,1728931027676,-150.0,0.000398,15]
[340257197,1728931027699,-500.0,0.00039999,60]
[340257198,1728931027723,-354.82,0.00039999,60]
[340257199,1728931027744,-500.0,0.00039999,60]
[340257200,1728931027766,-500.0,0.00039999,60]
[340257201,1728931027788,-500.0,0.00039999,60]
[340257202,1728931027809,-500.0,0.00039999,10]
[340257203,1728931027831,-500.0,0.00039999,60]
[340257204,1728931027853,-3342.0,0.0004,60]
[340257205,1728931027874,-16950.87767562,0.0004,2]
[340257213,1728931332810,536.0,0.00027,60]
[340257221,1728931433055,-150.0,0.000319,2]
[340257222,1728931433080,-153.0,0.00037741,120]
[340257223,1728931433103,-153.0,0.00037741,120]
[340257224,1728931433126,-153.0,0.0003775,120]
[340257225,1728931433149,-153.0,0.00037751,120]
[340257226,1728931433172,-153.0,0.00037759,120]
[340257227,1728931433194,-153.0,0.0003776,120]
[340257228,1728931433216,-620.3875,0.00038356,2]
[340257229,1728931433238,-302.840037,0.00038356,2]
[340257230,1728931433261,-600.28,0.00039221,60]
[340257231,1728931433283,-2417.73,0.00039221,60]
[340257232,1728931433307,-500.0,0.00039221,30]
[340257233,1728931433331,-574.93,0.00039221,60]
[340257234,1728931433355,-500.0,0.00039221,60]
[340257235,1728931433380,-600.28,0.00039824,60]
[340257236,1728931433405,-2417.73,0.00039824,60]
[340257237,1728931433428,-500.0,0.00039824,30]
[340257238,1728931433451,-262.48949026,0.00039824,60]
[340257239,1728931433474,-1066.51080676,0.00039899,2]
[340257240,1728931433498,-236.68,0.0003999,10]
[340257241,1728931433520,-500.0,0.00039998,60]
[340257242,1728931433543,-500.0,0.00039998,60]
[340257243,1728931433567,-1689.11,0.00039998,60]
[340257244,1728931433699,-500.0,0.00039998,60]
[340257245,1728931433733,-913.91,0.00039998,21]
[340257246,1728931433766,-500.0,0.00039998,60]
[340257247,1728931433789,-526.66,0.00039998,60]
[340257248,1728931433811,-500.0,0.00039998,60]
[340257249,1728931433833,-500.0,0.00039998,60]
[340257250,1728931433857,-280.65680205,0.00039999,14]
[340257251,1728931433880,-250.0,0.00039999,60]
[340257252,1728931433904,-500.0,0.00039999,60]
[340257253,1728931433927,-500.0,0.00039999,60]
[340257254,1728931433953,-500.0,0.00039999,60]
[340257255,1728931433977,-500.0,0.00039999,60]
[340257256,1728931434001,-511.89509219,0.00039999,60]
[340257257,1728931434024,-500.0,0.00039999,60]
[340257258,1728931434049,-500.0,0.00039999,60]
[340257259,1728931434073,-161.21723431,0.00039999,60]
[340257260,1728931434095,-500.0,0.00039999,60]
[340257261,1728931434117,-500.0,0.00039999,60]
[340257262,1728931434139,-500.0,0.00039999,60]
[340257263,1728931434162,-160.91537831,0.00039999,56]
[340257264,1728931434184,-509.33597527,0.00039999,60]
[340257265,1728931434207,-500.0,0.00039999,60]
[340257266,1728931434232,-500.0,0.00039999,60]
[340257267,1728931434255,-509.7097936,0.00039999,60]
[340257268,1728931434279,-500.0,0.00039999,60]
[340257269,1728931434301,-500.0,0.00039999,60]
[340257270,1728931434323,-500.0,0.00039999,60]
[340257271,1728931434346,-500.0,0.00039999,60]
[340257272,1728931434367,-511.29740218,0.00039999,60]
[340257273,1728931434389,-500.0,0.00039999,60]